bitfinex/quotes_ETHUSD_20250314
["timestamp","ask_amount","ask_price","bid_price","bid_amount"]
[1741962987973,6.8616,1917.0,1916.7,5.2173]
[1741962988175,0.7716,1917.0,1916.8,5.21675]
[1741962988396,0.797,1917.3,1917.0,5.2163]
[1741962988550,6.01266,1917.3,1916.3,15.17212]
[1741962988750,5.21604,1917.2,1916.8,5.217]
[1741962988953,7.744466,1917.3,1916.9,5.21669]
[1741962988954,0.797,1917.3,1916.9,5.21669]
[1741962989190,0.797,1917.3,1917.2,5.21593]
[1741962989391,0.7863,1917.6,1917.4,5.21532]
[1741962989591,0.7863,1917.6,1917.4,5.21526]
[1741962989753,0.7863,1917.6,1917.4,5.21524]
[1741962990066,0.7863,1917.9,1917.4,0.521524]
[1741962990274,0.7863,1917.9,1917.7,5.21435]
[1741962990478,6.432,1918.1,1917.8,5.21406]
[1741962990651,11.64549,1918.1,1917.7,5.21457]
[1741962990851,6.432,1918.1,1917.7,5.2144]
[1741962991052,6.432,1918.1,1917.6,5.21484]
[1741962991352,11.64553,1918.1,1917.7,5.21435]
[1741962991550,6.432,1918.1,1917.6,0.05214218]
[1741962991855,0.7658,1918.2,1917.8,5.2143]
[1741962992191,0.7658,1918.2,1917.5,5.21489]
[1741962992362,17.63379,1918.5,1918.0,5.21355]
[1741962992692,12.42113,1918.5,1918.0,5.21355]
[1741962992897,5.9912,1918.5,1918.0,5.21372]
[1741962993083,7.19932,1918.5,1918.1,5.21341]
[1741962993280,0.7786,1918.5,1918.2,5.2132]
[1741962993484,0.7786,1918.5,1918.2,5.21309]
[1741962993999,0.7786,1918.5,1918.3,10.42549]
[1741962994358,0.804,1918.8,1917.8,3.0]
[1741962994558,6.01559,1918.8,1918.4,5.21255]
[1741962994758,5.813499,1918.7,1918.2,5.21305]
[1741962994986,0.55,1918.5,1918.1,5.21337]
[1741962995184,0.55,1918.5,1918.0,5.21352]
[1741962995185,0.601559,1918.7,1918.3,5.21272]
[1741962995396,0.804,1918.8,1918.2,0.05212741]
[1741962995576,0.8312,1919.0,1918.8,5.21153]
[1741962995775,0.8312,1919.4,1919.0,5.21088]
[1741962995980,0.8312,1919.4,1919.0,10.4218]
[1741962996260,0.7695,1919.7,1919.2,5.21025]
[1741962996473,0.7695,1919.7,1919.3,5.21008]
[1741962996701,4.367349,1919.7,1919.0,10.42171]
[1741962996868,5.20981,1919.5,1919.0,5.21085]
[1741962997053,5.20981,1919.5,1919.1,5.21073]
[1741962997254,6.576539,1919.7,1919.2,10.42068]
[1741962997605,6.576539,1919.7,1919.1,5.21056]
[1741962997807,6.576539,1919.7,1919.2,5.21031]
[1741962998106,6.576659,1919.7,1919.2,10.42068]
[1741962998414,0.7957,1920.0,1919.4,5.20996]
[1741962998557,0.7957,1920.3,1920.0,5.20817]
[1741962998754,0.00628933,1920.5,1920.2,5.20756]
[1741962999502,0.00628933,1920.5,1920.4,5.20724]
[1741963000282,0.00628933,1920.5,1920.4,9.30076954]
[1741963000508,0.01,1920.9,1920.8,5.20616]
[1741963000708,0.01,1920.9,1920.8,8.25821229]
[1741963001116,0.01,1920.9,1920.8,8.20616]
[1741963001706,0.01,1920.9,1920.7,5.20636]
[1741963002006,0.01,1920.9,1920.2,1.041781]
[1741963002209,0.01,1920.9,1919.7,5.209]
[1741963002210,5.20671,1920.6,1919.7,5.209]
[1741963002558,6.432,1920.9,1919.9,3.0]
[1741963002714,0.55,1920.8,1919.8,8.20885]
[1741963002913,0.6982,1920.8,1920.3,5.20728]
[1741963003093,0.6982,1920.8,1920.4,5.2072]
[1741963003293,0.6982,1920.8,1920.4,5.2071]
[1741963003497,6.432,1920.9,1920.5,5.20696]
[1741963003696,6.432,1920.9,1920.4,5.2071]
[1741963003697,11.63809,1920.9,1920.4,5.2071]
[1741963003867,11.63809,1920.9,1920.2,5.20756]
[1741963003868,5.2065,1920.7,1920.2,5.20756]
[1741963004064,5.2065,1920.7,1920.0,3.0]
[1741963004283,0.759,1920.5,1919.7,6.418]
[1741963004512,0.759,1920.5,1920.0,5.20821]
[1741963004718,5.96612,1920.5,1920.1,5.20797]
[1741963004868,0.759,1920.5,1920.2,5.20767]
[1741963005070,17.31007,1920.8,1920.4,5.20713]
[1741963005268,5.20685,1920.6,1920.1,5.2079]
[1741963005475,5.20705,1920.5,1920.1,5.2079]
[1741963005923,5.20698,1920.5,1920.1,5.20789]
[1741963006222,5.20685,1920.6,1920.1,5.20804]
[1741963006437,5.20685,1920.6,1920.2,5.20763]
[1741963006623,5.7566,1920.7,1920.2,5.20763]
[1741963006836,1.8154,1920.7,1920.0,5.20811]
[1741963007023,1.8154,1920.7,1919.8,5.20865]
[1741963007024,5.20794,1920.2,1919.8,5.20865]
[1741963007228,5.20839,1920.0,1919.6,5.20916]
[1741963007399,0.55,1920.1,1919.7,5.20911]
[1741963007737,5.20821,1920.1,1919.6,5.20929]
[1741963007936,5.20838,1920.0,1919.6,5.20929]
[1741963008234,5.20838,1920.0,1919.5,5.20963]
[1741963008453,5.20864,1919.9,1919.5,5.730593]
[1741963008645,5.20887,1919.8,1919.4,5.20996]
[1741963008824,5.20864,1919.9,1919.4,5.20983]
[1741963009144,5.75873,1919.9,1919.4,5.2097]
[1741963009348,5.2091,1919.8,1919.3,5.21012]
[1741963009505,6.415,1919.9,1919.5,5.20943]
[1741963009701,6.415,1919.9,1919.6,5.20918]
[1741963009942,0.55,1919.8,1919.3,0.521012]
[1741963010255,0.7647,1919.7,1919.3,5.20997]
[1741963010416,0.7647,1919.7,1919.4,5.20976]
[1741963010613,0.7647,1919.7,1919.3,5.21023]
[1741963010925,0.7647,1919.7,1918.6,11.6281]
[1741963010926,5.21026,1919.3,1918.8,5.21137]
[1741963011117,5.21006,1919.4,1919.0,5.21102]
[1741963011296,11.62506,1919.4,1918.8,5.21142]
[1741963011495,5.21052,1919.2,1918.8,5.21142]
[1741963011700,0.7652,1919.1,1918.4,5.21249]
[1741963011999,0.7652,1919.1,1918.6,5.21192]
[1741963012000,5.97597,1919.1,1918.6,5.21192]
[1741963012199,5.97597,1919.1,1918.1,5.21348]
[1741963012200,5.21224,1918.6,1918.1,5.21348]
[1741963012410,5.21246,1918.5,1918.1,5.21328]
[1741963012629,0.8126,1918.6,1918.2,5.21318]
[1741963012899,6.02485,1918.6,1918.2,5.21317]
[1741963013231,0.8126,1918.6,1918.1,1.042703]
[1741963013411,5.21256,1918.5,1918.0,10.42729]
[1741963013618,5.2127,1918.4,1917.9,5.21399]
[1741963013832,5.2127,1918.4,1918.0,5.21371]
[1741963014231,5.21272,1918.4,1918.0,5.21371]
[1741963014969,5.21272,1918.4,1917.6,3.0]
[1741963014970,6.02487,1918.6,1918.1,5.21336]
[1741963015147,5.21309,1918.3,1917.8,5.21417]
[1741963015467,5.76257,1918.5,1917.9,5.21391]
[1741963015668,5.21298,1918.3,1917.8,5.21427]
[1741963015967,5.21348,1918.2,1917.7,10.42878]
[1741963016176,5.21348,1918.2,1917.4,5.736664]
[1741963016177,6.415,1918.2,1917.9,5.21386]
[1741963016360,6.415,1918.2,1918.1,5.21349]
[1741963016673,7.2276,1918.6,1918.1,10.42675]
[1741963016837,0.8126,1918.6,1918.2,5.21311]
[1741963017021,0.8126,1918.6,1917.9,5.21402]
[1741963017226,0.7997,1918.9,1918.1,5.21342]
[1741963017600,0.7997,1919.2,1919.1,5.21077]
[1741963017918,6.415,1919.4,1919.1,5.21077]
[1741963018113,6.415,1919.4,1919.0,5.21095]
[1741963018114,6.415,1919.4,1919.0,5.21087]
[1741963018365,6.415,1919.4,1919.1,5.21064]
[1741963018564,11.62507,1919.4,1919.0,5.21098]
[1741963018738,11.62507,1919.4,1918.9,5.2113]
[1741963018947,11.62507,1919.4,1918.9,10.42242]
[1741963019269,5.21062,1919.2,1918.7,5.21162]
[1741963019474,5.21062,1919.2,1918.7,5.21173]
[1741963019636,5.21062,1919.2,1918.8,5.21145]
[1741963019973,0.55,1919.2,1918.9,5.21114]
[1741963020173,12.867447,1919.4,1919.0,5.21085]
[1741963020330,6.415,1919.4,1918.9,5.21131]
[1741963020535,5.76043,1919.3,1918.6,3.0]
[1741963020737,0.7997,1919.5,1919.2,5.21024]
[1741963021035,5.20943,1919.6,1918.7,5.26397208]
[1741963021036,6.09,1919.7,1918.8,3.0]
[1741963021264,6.02728,1919.2,1918.5,3.0]
[1741963021564,7.2316,1919.5,1919.2,5.21034]
[1741963021781,0.8166,1919.8,1919.4,5.20996]
[1741963022077,6.415,1919.7,1919.4,5.20994]
[1741963022282,6.415,1919.7,1919.4,5.20983]
[1741963022483,6.02557,1919.8,1919.6,5.20926]
[1741963022484,7.2316,1919.8,1919.6,5.20926]
[1741963022641,5.20941,1919.6,1919.2,5.21039]
[1741963022841,5.20941,1919.6,1919.2,5.21035]
[1741963023154,5.21005,1919.4,1918.9,5.21131]
[1741963023479,0.7721,1919.3,1919.2,5.6886608]
[1741963023637,0.7605,1919.6,1919.3,5.21002]
[1741963023987,5.20969,1919.5,1919.2,0.4781608]
[1741963024564,5.20999,1919.4,1919.2,0.4781608]
[1741963024787,0.7605,1919.6,1919.3,5.21013]
[1741963024966,6.8916,1919.9,1919.5,5.20969]
[1741963025137,0.8016,1919.9,1919.6,5.20921]
[1741963025477,4.90912578,1920.5,1919.4,0.57311619]
[1741963025478,0.8016,1920.2,1920.0,5.20824]
[1741963025685,0.8016,1920.2,1919.5,5.20969]
[1741963025982,0.8016,1920.2,1919.6,0.520969]
[1741963026162,0.8016,1920.2,1920.0,5.20819]
[1741963026337,6.413,1920.5,1920.1,5.20806]
[1741963026539,7.1786,1920.5,1920.0,5.2082]
[1741963026789,3.0,1920.6,1920.0,0.05207556]
[1741963027075,6.02848,1920.3,1919.8,5.20868]
[1741963027276,3.8208,1920.6,1919.9,5.2086]
[1741963027479,5.20698,1920.5,1919.7,5.209]
[1741963027634,11.23448,1920.6,1920.2,5.20769]
[1741963027841,5.20736,1920.4,1919.9,5.20833]
[1741963028038,5.20753,1920.3,1919.9,5.20833]
[1741963028237,5.20753,1920.3,1919.9,5.20847]
[1741963028438,5.20724,1920.4,1920.0,5.20828]
[1741963028636,1.3708,1920.6,1919.8,0.05208305]
[1741963028891,0.8208,1920.6,1920.3,5.20746]
[1741963029061,0.8208,1920.6,1920.2,5.20768]
[1741963029259,0.8208,1920.6,1919.8,0.3052083]
[1741963029260,0.8208,1920.6,1920.1,5.20806]
[1741963029496,0.8208,1920.6,1920.0,5.20826]
[1741963029787,6.02763,1920.6,1920.2,5.20773]
[1741963030295,0.8208,1920.6,1920.3,5.20746]
[1741963030494,0.8208,1920.6,1920.4,5.20712]
[1741963030789,5.2062,1920.8,1920.4,5.20712]
[1741963030988,5.20689,1920.6,1920.2,5.20754]
[1741963031281,5.20654,1920.7,1920.3,5.20734]
[1741963031648,13.00379,1920.9,1920.5,5.20676]
[1741963031842,0.01,1920.9,1920.8,5.20616]
[1741963032271,0.01,1920.9,1920.3,5.20732]
[1741963032491,5.20636,1920.8,1920.4,5.20709]
[1741963032792,5.1992372,1920.8,1920.4,5.20709]
[1741963033088,6.04614,1920.9,1920.5,5.20685]
[1741963033385,6.04605,1920.9,1920.5,10.41368]
[1741963033588,6.04605,1920.9,1920.1,5.20803]
[1741963033589,6.04592,1920.9,1920.1,5.20803]
[1741963033744,5.20665,1920.7,1920.2,5.20762]
[1741963033948,5.20622,1920.8,1919.9,3.0]
[1741963034151,0.84,1920.9,1920.5,5.20675]
[1741963034687,0.84,1920.9,1920.7,5.20639]
[1741963034990,0.01,1920.9,1920.7,5.20632]
[1741963035185,0.8168,1920.7,1919.9,11.3686]
[1741963035387,0.8168,1920.7,1920.3,5.20734]
[1741963035691,6.02344,1920.7,1920.2,5.20768]
[1741963036049,6.02344,1920.7,1920.1,5.20791]
[1741963036050,5.20721,1920.5,1920.1,5.20791]
[1741963036250,6.02337,1920.7,1920.1,5.20791]
[1741963036251,5.20677,1920.6,1920.1,5.20783]
[1741963036491,6.02335,1920.7,1920.3,5.20738]
[1741963036693,5.20681,1920.6,1920.1,5.20785]
[1741963036893,5.20681,1920.6,1919.8,5.5139083]
[1741963036894,6.02324,1920.7,1920.2,5.20762]
[1741963037097,6.02324,1920.7,1920.2,5.25983267]
[1741963037296,6.02324,1920.7,1920.2,0.05207267]
[1741963037297,0.8168,1920.7,1920.2,0.05207267]
[1741963037645,0.01,1920.9,1920.7,5.20627]
[1741963037752,0.01,1920.9,1920.7,5.20623]
[1741963037961,0.01,1920.9,1920.8,5.20616]
[1741963038794,0.01,1920.9,1920.8,5.2582176]
[1741963038950,1e-05,1920.9,1920.8,5.2582176]
[1741963039158,1e-05,1920.9,1920.8,8.2581997]
[1741963039467,6.01288,1921.9,1921.3,5.20456]
[1741963039668,6.01288,1921.9,1921.4,5.20441]
[1741963039865,5.20346,1921.8,1921.4,5.20441]
[1741963040101,0.8097,1921.9,1921.4,5.2044]
[1741963040301,6.01303,1921.9,1921.5,5.20413]
[1741963040506,6.01303,1921.9,1921.4,5.20451]
[1741963040702,5.20348,1921.8,1921.3,5.20457]
[1741963040860,5.20348,1921.8,1921.3,10.40922]
[1741963041200,6.01303,1921.9,1921.4,5.20431]
[1741963041403,6.01303,1921.9,1921.5,5.20413]
[1741963041587,6.01303,1921.9,1921.3,0.520457]
[1741963041588,0.8097,1921.9,1921.3,0.520457]
[1741963041901,0.8172,1921.3,1920.9,5.20587]
[1741963042084,0.8172,1921.3,1921.0,5.20549]
[1741963042397,0.8172,1921.3,1920.8,5.20594]
[1741963042597,0.8172,1921.3,1920.9,5.20584]
[1741963042898,0.8172,1921.3,1921.2,5.20508]
[1741963043103,0.7814,1921.6,1921.3,5.20479]
[1741963043260,0.7814,1921.6,1921.2,5.20508]
[1741963043603,0.7814,1921.6,1921.3,5.20459]
[1741963043785,0.7814,1921.6,1921.4,5.20441]
[1741963043956,0.7814,1921.6,1921.2,5.725318]
[1741963044159,0.7814,1921.6,1920.7,1.56931721]
[1741963044381,5.98552,1921.6,1921.1,5.20513]
[1741963044591,5.98539,1921.6,1921.2,5.20497]
[1741963044788,5.20472,1921.4,1920.9,5.20568]
[1741963045001,5.20472,1921.4,1921.0,5.20561]
[1741963045207,5.2051,1921.2,1920.8,5.20611]
[1741963045391,5.2051,1921.2,1920.8,10.41214]
[1741963045392,0.7524,1921.2,1920.8,10.41214]
[1741963045700,0.7524,1921.2,1920.9,5.20572]
[1741963045900,5.20564,1921.0,1920.6,5.20648]
[1741963046074,5.20605,1920.9,1920.5,5.20694]
[1741963046396,0.7524,1921.2,1920.6,0.0520647]
[1741963046801,0.7524,1921.2,1920.9,5.20578]
[1741963046967,0.7524,1921.2,1920.7,5.20625]
[1741963046968,5.95751,1921.2,1920.8,5.20612]
[1741963047168,11.16276,1921.2,1920.7,5.20625]
[1741963047383,5.95751,1921.2,1920.7,5.20625]
[1741963047590,1.348151,1921.2,1920.5,0.05206028]
[1741963047821,0.7524,1921.2,1920.5,5.25900028]
[1741963048131,0.7524,1921.2,1920.7,5.20635]
[1741963048306,0.7957,1920.8,1920.2,6.404]
[1741963048506,0.7957,1920.8,1920.7,5.20643]
[1741963048710,0.7957,1921.1,1920.7,5.20643]
[1741963049024,0.7957,1921.1,1920.7,10.41249]
[1741963049208,0.7957,1921.1,1920.8,5.2061]
[1741963049417,6.00105,1921.1,1920.7,5.20632]
[1741963049711,0.7957,1921.1,1921.0,5.20562]
[1741963050237,0.7958,1921.3,1921.1,5.2053]
[1741963050402,0.7958,1921.3,1921.0,5.20541]
[1741963050730,0.7958,1921.3,1920.7,10.41241]
[1741963050931,0.7958,1921.3,1921.1,5.20532]
[1741963051129,0.7958,1921.3,1921.2,5.20508]
[1741963051331,0.7958,1921.3,1921.0,5.20545]
[1741963051530,6.00071,1921.3,1920.9,5.20586]
[1741963051731,5.20547,1921.1,1920.6,5.2067]
[1741963051936,5.20601,1920.9,1920.4,10.4142]
[1741963052139,5.20591,1920.9,1920.4,5.20722]
[1741963052328,5.20725,1920.4,1920.1,5.20804]
[1741963052530,0.7676,1920.4,1920.1,5.20795]
[1741963052835,5.2067,1920.6,1920.1,5.20794]
[1741963052836,5.20683,1920.6,1920.1,5.20794]
[1741963053003,5.20741,1920.4,1920.0,5.2081]
[1741963053209,6.09,1920.5,1920.1,5.2078]
[1741963053415,6.09,1920.5,1919.9,5.20858]
[1741963053416,6.09,1920.5,1920.4,5.20724]
[1741963053619,5.20627,1920.8,1920.4,5.20718]
[1741963053826,5.20603,1920.9,1920.5,5.20685]
[1741963054010,10.41213,1920.9,1920.5,5.20685]
[1741963054204,5.20603,1920.9,1920.5,5.20681]
[1741963054409,5.20617,1920.8,1920.4,5.20717]
[1741963054610,5.20597,1920.9,1920.5,10.41372]
[1741963054813,5.20597,1920.9,1920.5,5.20679]
[1741963055439,5.20597,1920.9,1920.5,10.41358]
[1741963055645,6.403,1921.0,1919.9,5.2086]
[1741963055807,0.7683,1921.1,1920.4,5.20724]
[1741963056012,0.7683,1921.1,1921.0,5.20562]
[1741963056311,0.792,1921.4,1921.3,5.2048]
[1741963057211,0.792,1921.4,1920.8,5.2061]
[1741963057414,0.792,1921.4,1921.2,5.20489]
[1741963057741,0.792,1921.4,1921.2,5.20506]
[1741963057912,5.99661,1921.4,1920.9,5.25792107]
[1741963058107,5.99661,1921.4,1920.0,0.52086]
[1741963058108,0.7535,1920.8,1920.6,5.20667]
[1741963058351,0.7535,1920.8,1920.4,5.20724]
[1741963058548,0.7535,1920.8,1920.3,5.20746]
[1741963058709,0.7535,1920.8,1920.7,5.20643]
[1741963058907,0.7535,1920.8,1920.3,1.08012116]
[1741963059125,0.7535,1920.8,1920.6,10.41314]
[1741963059337,0.7535,1920.8,1920.4,5.20717]
[1741963059518,5.9598,1920.8,1920.3,5.20736]
[1741963059735,5.20681,1920.6,1920.2,10.41537]
[1741963060051,5.20644,1920.7,1920.3,5.20739]
[1741963060218,5.20676,1920.6,1920.3,5.20739]
[1741963060415,2.365912,1920.7,1920.3,5.20736]
[1741963060614,12.779122,1920.7,1920.3,5.20736]
[1741963060816,10.41321,1920.7,1920.3,5.20736]
[1741963061058,6.8435,1920.8,1920.2,5.20779]
[1741963061213,6.09,1920.8,1920.7,5.20643]
[1741963061542,6.09,1920.8,1920.2,0.05207506]
[1741963061543,6.00885,1921.0,1920.6,5.20644]
[1741963061728,5.20598,1920.9,1920.5,5.20689]
[1741963061932,6.00887,1921.0,1920.6,5.20655]
[1741963062133,0.8032,1921.0,1920.7,5.20622]
[1741963062322,0.8032,1921.0,1920.8,5.20603]
[1741963062522,0.8032,1921.0,1920.9,5.20589]
[1741963062734,11.29428,1921.5,1921.1,5.20511]
[1741963062933,0.8,1921.4,1921.3,5.2048]
[1741963063332,6.8909,1922.2,1920.8,5.20597]
[1741963063550,10.40674,1921.9,1921.4,5.20435]
[1741963063743,0.8009,1921.8,1921.5,5.20419]
[1741963063926,6.00446,1921.8,1921.3,5.2046]
[1741963064122,0.8009,1921.8,1921.5,5.20405]
[1741963064322,0.8009,1921.8,1921.4,5.20448]
[1741963064527,0.8009,1921.8,1921.5,5.20419]
[1741963065150,0.8009,1921.8,1921.3,0.52046]
[1741963065151,5.20384,1921.7,1921.3,0.52046]
[1741963065329,5.20452,1921.5,1921.0,5.20537]
[1741963065529,5.20475,1921.4,1920.9,5.20588]
[1741963065769,6.9175,1921.5,1920.9,5.20588]
[1741963066064,5.20521,1921.2,1920.7,5.20618]
[1741963066362,6.03296,1921.1,1920.7,5.20618]
[1741963066941,5.20577,1921.0,1920.6,0.38435954]
[1741963067130,7.2285,1921.1,1920.8,5.20592]
[1741963067327,12.43386,1921.1,1920.7,5.20632]
[1741963067531,7.2285,1921.1,1920.8,5.20608]
[1741963068030,0.8275,1921.1,1920.8,5.20608]
[1741963068240,0.8275,1921.1,1920.7,5.20636]
[1741963068440,0.8275,1921.1,1920.8,5.20613]
[1741963068643,0.8275,1921.1,1920.7,5.20641]
[1741963068861,0.8275,1921.1,1920.7,5.20636]
[1741963069075,6.03297,1921.1,1920.7,5.20636]
[1741963069270,5.2059,1920.9,1920.5,5.20683]
[1741963069471,5.20628,1920.8,1920.4,5.20723]
[1741963069671,5.20628,1920.8,1920.1,5.60190938]
[1741963069672,5.20563,1921.0,1920.5,5.20673]
[1741963069876,5.206,1920.9,1920.4,5.20716]
[1741963070046,0.8057,1920.7,1920.4,5.20705]
[1741963070449,6.01221,1920.7,1920.2,5.20778]
[1741963070671,6.01221,1920.7,1920.2,5.2076]
[1741963070871,0.8057,1920.7,1920.4,5.20714]
[1741963071039,6.01213,1920.7,1920.2,5.20778]
[1741963071246,5.20733,1920.4,1920.0,5.20824]
[1741963071445,5.20721,1920.5,1920.1,5.20793]
[1741963071750,5.9605,1920.2,1919.7,5.20894]
[1741963072070,5.9605,1920.2,1919.2,6.4]
[1741963072071,18.4505,1920.2,1919.8,5.20877]
[1741963072253,18.45052,1920.2,1919.8,5.20874]
[1741963072453,13.2427,1920.2,1919.9,5.20842]
[1741963072772,18.45051,1920.2,1919.8,5.20869]
[1741963072973,20.816326,1920.2,1919.7,5.20893]
[1741963073169,18.45051,1920.2,1919.9,5.20852]
[1741963073374,13.2427,1920.2,1919.9,5.20852]
[1741963073572,5.20835,1920.0,1919.6,5.20924]
[1741963073869,5.20814,1920.1,1919.7,5.20897]
[1741963074280,0.8248,1919.7,1919.3,5.21]
[1741963074446,10.41962,1919.5,1919.1,5.2107]
[1741963074648,5.2097,1919.5,1919.1,5.21066]
[1741963074848,10.4196,1919.5,1919.1,5.21066]
[1741963075073,5.2097,1919.5,1919.1,10.42115]
[1741963075272,18.52399,1919.7,1919.3,5.2101]
[1741963075657,18.52399,1919.7,1919.3,10.42014]
[1741963075850,13.3148,1919.7,1919.4,5.20991]
[1741963076067,6.9148,1919.7,1919.6,5.20941]
[1741963076262,6.9148,1919.7,1918.7,5.59607186]
[1741963076463,6.9148,1919.7,1919.3,5.21002]
[1741963076663,6.9148,1919.7,1919.6,5.20941]
[1741963076864,6.9148,1919.7,1919.4,5.2099]
[1741963077182,6.9148,1919.7,1919.4,5.20984]
[1741963077396,0.8248,1919.7,1919.5,5.20959]
[1741963077754,0.8248,1919.7,1919.4,5.20994]
[1741963077948,6.03404,1919.7,1919.3,5.21014]
[1741963078183,5.20924,1919.7,1919.3,5.21014]
[1741963078390,5.20895,1919.8,1919.4,5.20972]
[1741963078682,5.2098,1919.5,1919.1,5.21073]
[1741963078848,5.2098,1919.5,1918.9,6.27910714]
[1741963078849,5.20969,1919.5,1918.9,5.21131]
[1741963079052,5.20969,1919.5,1919.1,5.21069]
[1741963079251,5.20966,1919.6,1919.2,5.21029]
[1741963079451,5.20984,1919.5,1919.0,5.21079]
[1741963079653,5.20941,1919.6,1919.2,5.21047]
[1741963079851,10.41906,1919.6,1919.2,5.21047]
[1741963080082,5.20941,1919.6,1919.2,5.21047]
[1741963080387,0.8309,1919.7,1919.2,1.09422964]
[1741963080598,6.09,1919.8,1919.7,5.20914]
[1741963080893,6.00385,1919.9,1919.4,5.20988]
[1741963081086,6.00385,1919.9,1919.4,5.20977]
[1741963081389,0.7951,1919.9,1919.6,5.20932]
[1741963081593,0.7951,1919.9,1919.4,5.20992]
[1741963081793,0.7951,1919.5,1918.9,0.57709172]
[1741963081980,6.00493,1919.5,1919.0,5.21087]
[1741963082197,0.7951,1919.5,1919.1,5.21054]
[1741963082518,0.7951,1919.5,1918.8,5.77095719]
[1741963082821,0.7951,1919.5,1919.2,5.21039]
[1741963082958,5.21033,1919.3,1918.9,5.21114]
[1741963083157,6.00602,1919.1,1918.7,5.21174]
[1741963083364,0.7951,1919.1,1918.9,5.21119]
[1741963083591,0.7951,1919.1,1918.4,0.39718002]
[1741963083811,6.00588,1919.1,1918.7,5.21178]
[1741963084103,6.00598,1919.1,1918.7,5.21172]
[1741963084267,5.21116,1919.0,1918.7,5.21184]
[1741963084589,5.21116,1919.0,1918.3,5.21293]
[1741963084590,7.1971,1919.1,1918.8,5.21142]
[1741963084790,12.4079,1919.1,1918.7,10.42342]
[1741963085090,7.1971,1919.1,1918.5,5.21232]
[1741963085297,12.40789,1919.1,1918.2,6.80086448]
[1741963085458,7.1971,1919.1,1918.9,5.21112]
[1741963085994,7.1971,1919.1,1919.0,5.21104]
[1741963086365,6.09,1919.3,1919.1,5.21051]
[1741963086591,6.09,1919.3,1919.0,5.21102]
[1741963086796,0.7534,1919.4,1918.8,5.21148]
[1741963087098,0.7534,1919.4,1918.9,5.21131]
[1741963087272,5.21116,1919.0,1918.6,5.21207]
[1741963087459,5.21087,1919.1,1918.4,5.21267]
[1741963087789,0.7534,1919.2,1918.4,5.21267]
[1741963087790,0.7534,1919.2,1918.6,5.2121]
[1741963088095,10.42248,1919.0,1918.6,5.2121]
[1741963088297,5.21134,1918.9,1918.5,5.21238]
[1741963088596,10.42181,1919.1,1918.7,5.21174]
[1741963088791,0.7534,1919.2,1918.6,5.21213]
[1741963089103,0.7534,1919.2,1918.9,5.21118]
[1741963089281,7.1564,1919.2,1918.9,10.42239]
[1741963089592,0.7534,1919.2,1918.9,5.21118]
[1741963089789,0.7534,1919.2,1918.8,5.2115]
[1741963089790,5.21077,1919.1,1918.8,5.2115]
[1741963089989,5.21115,1919.0,1918.6,5.21206]
[1741963090195,5.21115,1919.0,1918.6,10.42401]
[1741963090401,0.7534,1919.2,1918.5,5.21236]
[1741963090402,5.96393,1919.2,1918.5,5.21236]
[1741963090563,5.21087,1919.1,1918.7,5.21172]
[1741963091192,13.811646,1919.2,1918.7,5.21167]
[1741963091395,6.8434,1919.2,1919.0,5.21093]
[1741963091696,6.8434,1919.2,1919.1,5.21077]
[1741963092076,0.8305,1919.5,1919.2,5.21023]
[1741963092384,0.8305,1919.5,1919.4,5.20996]
[1741963092799,6.09,1919.6,1919.5,5.20969]
[1741963093102,7.2196,1919.8,1919.6,5.20922]
[1741963093301,0.8176,1920.1,1919.9,5.20853]
[1741963093481,0.8176,1920.1,1919.5,5.20956]
[1741963093668,12.11567,1920.1,1919.6,5.20924]
[1741963093867,6.9076,1920.1,1919.9,5.20858]
[1741963094071,17.239,1920.6,1919.6,5.730314]
[1741963094072,12.09201,1920.5,1920.1,5.20781]
[1741963094279,5.20726,1920.4,1920.0,5.20823]
[1741963094497,5.20746,1920.4,1920.0,5.20823]
[1741963094799,5.20739,1920.4,1920.0,5.20821]
[1741963095008,0.8235,1920.1,1919.5,0.39629942]
[1741963095213,0.8235,1920.1,1919.6,5.20941]
[1741963095364,0.8235,1920.1,1920.0,5.20833]
[1741963095569,5.208,1920.2,1919.7,5.20912]
[1741963095872,5.20808,1920.1,1919.8,5.20874]
[1741963096220,0.8235,1920.4,1919.3,5.21023]
[1741963096387,0.8235,1920.4,1920.1,5.20805]
[1741963096573,6.03076,1920.4,1920.1,5.20805]
[1741963096775,6.03076,1920.4,1920.3,5.20751]
[1741963096776,0.8235,1920.4,1920.3,5.20751]
[1741963097100,0.8235,1920.4,1920.1,5.20805]
[1741963097297,0.8235,1920.4,1919.7,5.20913]
[1741963097612,0.8235,1920.4,1919.8,0.520913]
[1741963097777,0.8235,1920.4,1920.0,5.20821]
[1741963097778,6.03092,1920.4,1920.0,5.20821]
[1741963098102,6.03092,1920.4,1919.8,5.20885]
[1741963098103,5.20793,1920.2,1919.8,5.20885]
[1741963098414,0.8235,1920.4,1919.9,5.20857]
[1741963098624,5.20762,1920.3,1919.3,5.2101]
[1741963098784,6.03084,1920.4,1920.0,5.20822]
[1741963099120,0.8235,1920.4,1920.2,5.20753]
[1741963099297,0.8235,1920.4,1920.3,5.20751]
[1741963099686,0.7784,1920.7,1920.5,5.20685]
[1741963100085,0.7784,1920.7,1920.4,5.20708]
[1741963100286,0.7784,1920.7,1920.5,5.20682]